{"text_format":"1","workbook":"xlsx","n_sheets":6,"sheets":["Istruzioni","Playlists","Tracks","iTunes Pricing","Parametri","Liste "],"not_rendered":{"charts":0,"images":0,"macros":1,"external_links":0,"defined_names":10,"comments":0,"pivot_tables":0},"unopened":[],"bounds":{"document_bytes":16777216,"sheet_cells":100000,"rows_first":2000,"rows_last":500,"rows_between":2000,"halvings":0,"cell_chars":16384,"cell_head_chars":4096},"cells_cut":0,"cells_raw":0,"read":"whole","date_system":"1900"}

{"sheet":"Istruzioni","index":0,"n_rows":39,"n_cols":3,"rows_kept":39,"cut":false,"hidden":false,"merged":[]}
["Informazioni generali","Link alla guida in linea \"Music Style Guide iTunes\""]
[]
["Perché il file funzioni correttamente bisogna attivare le MACRO quando viene chiesto all'apertura del file stesso. Qualora il messaggio di apertura non vi permettesse di aprire le macro a causa di una protezione, dovete fare un cambiamento: Cerca nei menu dove si imposta il livello di protezione delle macro. Cambiate abbassando la protezione da \"Elevata\" a \"Media\". Salvate e riaprire il file."]
[]
["Si può compilare un file con quante playlist si vuole. Per playlist si intende un rpdotto (album, singolo, EP, ecc.)"]
[]
["Questo file deve essere nominato in questo modo: NomeLabel_Barcode (es: Ossigeno_801165364256), oppure NomeLabel_CodiceCatalogo (es: Ossigeno_VC 001)"]
[]
["Le colonne evidenziate in rosa sono obbligatorie"]
[]
["I titoli degli album e dei brani in lingua italiana vanno scitti come ci hanno insegnato a scuola con le maiuscole all'inizio della frase, ecc. ecc. Questo vale anche per titoli in francese, svedese, scandinavo. Per lo spagnolo, portoghese, tedesco e altre eccezioni e dettagli consulta la guida in linea \"WESTNER EUROPE LANGUAGE GUIDELINES\"","https://help.apple.com/itc/musicstyleguide/#/itcc6840efe5","new 5.4"]
[]
["I titoli degli album e dei brani in lingua inglese vanno scritti con le iniziali di tutte le parole in maiuscolo ad eccezione delle seguenti parole che vanno scritte tutto minuscolo: a, an, and, as, but, for, from, nor, of, or, so, the, to, and yet. Tutto in minuscolo vanno anche le preposizioni di quattro lettere o meno (at, by, for, from, in, into, of, off, on, onto, out, over, to, up, and with), tranne quando la parola è parte di una frase verbale o è usata come altra componente del discorso (come un avverbio, un aggettivo, un sostantivo o un verbo). Per un elenco di esempi e ulteriori dettagli consulta la guida in linea \"ENGLISH LANGUAGE GUIDELINES\"","https://help.apple.com/itc/musicstyleguide/#/itc7436bdcd1"]
[]
["I titoli degli album e dei brani in cirillico hanno delle regole molto complesse si prega di consultarci prim di compilare i metadati. Alcuni dettagli disponibili nella guida in linea \"EASTERN EUROPE LANGUAGE GUIDELINES\"","https://help.apple.com/itc/musicstyleguide/#/itce7b765579","new 5.4"]
[]
["Non usare mai la scrittura di nomi e titoli tutto maiuscolo, per nessuna lingua."]
[]
["Per l'inserimento di brani di musica jazz e musica classica, dal 2019 ci sono delle regole specifiche da rispettare. Compila accuratamente la colonna \"Artist Role\" delle Playlist e delle Tracks con i collaboratori artistici e i musicisti con il loro strumento.",null,"new 5.4"]
[]
["Per l'inserimento di brani di musica classica ci sono delle regole specifiche da rispettare. Chi ha del repertorio di musica classica ci contatti prima di compilare il metadati. Per avere un'idea delle regole consulta la guida in linea.","https://help.apple.com/itc/musicstyleguide/#/itc7a6525236"]
[]
["Le Playlist che contengono registrazioni di Pubblico Dominio devono essere evidenziate al momento dell'invio dei metadati. 1) Nella colonna \"Territory\" della Playlist va scritto semplicemente \"PD\".  2) Nella colonna \"(P) Year\" delle Track mettere l'anno di prima pubblicazione originale della registrazione. Att.ne: Molti negozi e servizi non accettano più registrazioni di pubblico dominio (sopratutto alcuni dei più importanti), la distribuzione sarà perciò a macchia di leoparto tra negozi e nazioni."]
[]
["Come aumentare le potenzialità di vendita"]
[]
["Ottimizza i sample di ascolto. Per farlo devi decidere quando inizia la parte più interessante di ogni brano da cui far partire i 30 o 90 secondi (dipende dal negozio) di preascolto che il pubblico ha a disposizione per valutare se il brano gli piace o meno. Indica il dato, in secondi, nella colonna \"Preview Start\". Attenzione che il punto di inizio del sample deve essere ad almeno 90 secondi dalla fine del brano.",null,"new 5.4"]
[]
["Indica i dettagli di Musicisti, Direttori, Solisti, Produttori, Remixer, ecc.. e/o lo strumento suonato dai musicisti, compilando la colonna \"Artist Role\" delle Playlist e delle Tracks. ",null,"lista aggiornata  5.4"]
[]
["Fornitura file audio e copertine"]
[]
["Per ogni playlist, qualora non venga inviato il disco fisico ma i file relativi, gli stessi devono avere delle precise caratteristiche tecniche così come indicato nel file \"o2d_Manuale fornitura contenuti.doc\" disponibile dalla pagina \"download\" del tuo Partner Manager"]
[]
["In estrema sintesi: i file audio devono essere in formato .wav, 16 bit, 44100Hz, 1411kbps, il Sistema NON accetta nessun altro formato, frequenza o campionamento;  Il file delle copertine deve essere formato .jpg 3000x3000 pixel (quadrata!), RGB a 72 dpi."]
[]
["Fornitura URL dei Profili Artista"]
[]
["Per ogni Artista e Featuring presente nel file metadati, bisogna comunicare via email, parallelamente all’invio dello stesso, gli URL (l’indirizzo sul web) dei rispettivi profili Artista su Spotify e Apple Music.\nSia per Spotify che per Apple Music, una volta identificato il vostro Artista cliccate sui tre puntini a fianco del nome e copiate il link seguendo le tendine di scelta.\nFate molta attenzione che si tratti proprio del vostro Artista (controllando la discografia allegata) e che il nome corrisponda al 100% con quello inserito nel metadati, anche nella sua forma, punteggiatura e caratteri speciali. \n\nSe un profilo del vostro Artista non esiste, comunicatecelo e lo faremo creare ex-novo.\n\nNota: Una volta comunicato il profilo, verrà inserito nel nostro database e non sarà più necessario.",null,"new 5.4"]

{"sheet":"Playlists","index":1,"n_rows":17,"n_cols":28,"rows_kept":17,"cut":false,"hidden":false,"merged":[[0,17,0,18],[0,15,2,15],[0,11,2,11],[0,12,2,12],[0,13,2,13],[0,14,2,14],[1,17,2,17],[1,18,2,18]]}
[null,"Album",null,null,null,null,null,null,null,null,null,"Territory","Out of Print","Remastered","Digital Only","Gapless",null,"NON Più IN USO",null,null," "]
["Label ",null,"(P) Date","Artist Name","Album Title","Album Title Version","Note","Barcode","Tier","Genre","Featuring",null,null,null,null,null,"Artist Role","Italian Spot","English Spot"]
[null,"Code",null,null,null,null,null,null,null,null,null,null,null,null,null,null,null,null," ",null," "]
[null,null,null,null,null,null,null,null,null,null,null,null,null,null,null,null,null,null,null,null,null,null,null,null,null,null,null," "]
[null,null,null,null,null,null,null,null,null,null,null,null,null,null,null,null,null,null,null,null,null,null,null,null,null,null,null," "]
[null,null,null,null,null,null,null,null,null,null,null,null,null,null,null,null,null,null,null,null,null,null,null,null,null,null,null," "]
[null,null,null,null,null,null,null,null,null,null,null,null,null,null,null,null,null,null,null,null,null,null,null,null,null,null,null," "]
[null,null,null,null,null,null,null,null,null,null,null,null,null,null,null,null,null,null,null,null,null,null,null,null,null,null,null," "]
[null,null,null,null,null,null,null,null,null,null,null,null,null,null,null,null,null,null,null,null,null,null,null,null,null,null,null," "]
[null,null,null,null,null,null,null,null,null,null,null,null,null,null,null,null,null,null,null,null,null,null,null,null,null,null,null," "]
[null,null,null,null,null,null,null,null,null,null,null,null,null,null,null,null,null,null,null,null,null,null,null,null,null,null,null," "]
[null,null,null,null,null,null,null,null,null,null,null,null,null,null,null,null,null,null,null,null,null,null,null,null,null,null,null," "]
[null,null,null,null,null,null,null,null,null,null,null,null,null,null,null,null,null,null,null,null,null,null,null,null,null,null,null," "]
[null,null,null,null,null,null,null,null,null,null,null,null,null,null,null,null,null,null,null,null,null,null,null,null,null,null,null," "]
[null,null,null,null,null,null,null,null,null,null,null,null,null,null,null,null,null,null,null,null,null,null,null,null,null,null,null," "]
[null,null,null,null,null,null,null,null,null,null,null,null,null,null,null,null,null,null,null,null,null,null,null,null,null,null,null," "]
[null,null,null,null,null,null,null,null,null,null,null,null,null,null,null,null,null,null,null,null,null,null,null,null,null,null,null," "]

{"sheet":"Tracks","index":2,"n_rows":3,"n_cols":23,"rows_kept":3,"cut":false,"hidden":false,"merged":[[0,16,2,16]]}
["Album","Disc","Track",null,"(P)",null,null,null,null,null," ",null,null,null,null,null,"Parental Advisory","Preview"," ","Publisher",null,"Clip"]
[null,null,null,"ISRC",null,"Artist Name","Track Title","Track Title Version","Featuring","Note","Time","Music Composer","Lyrics Author","Publisher","ISWC","Genre",null,null,"Tier",null,"Language","Youtube","Artist Role"]
["Code","Nr.","Nr.",null,"Year",null,null,null,null,null,null,null,null,null,null,null,null," Start",null," Control",null,"Link"]

{"sheet":"iTunes Pricing","index":3,"n_rows":30,"n_cols":15,"rows_kept":30,"cut":false,"hidden":false,"merged":[[29,0,29,13],[0,2,0,14],[1,2,1,7],[1,9,1,14],[27,0,27,13],[28,0,28,12]]}
[null,null,"PREZZI AL PUBBLICO"]
[null,null,"CONVERTITI IN EURO",null,null,null,null,null,null,"esempi in VALUTA ORIGINALE"]
[null,null,"EU","USA","CAN","MEX","AUS","JP",null,"EU","USA","CAN","MEX","AUS","JP"]
[null,"data cambio","2018-11-27",0.88280000000000003,0.66590000000000005,4.3099999999999999E-2,0.63980000000000004,7.7999999999999996E-3]
[]
["Track Tier (Categoria di prezzo x il BRANO)"]
["Back",null,0.69,{"$f":"$K7*D$4","v":0},{"$f":"$L7*E$4","v":0},{"$f":"$M7*F$4","v":0},{"$f":"$N7*G$4","v":0.76136199999999998},{"$f":"$O7*H$4","v":0},{"$f":"A7","v":"Back"},0.69,null,null,null,1.19]
["Mid (default)",null,0.99,{"$f":"$K8*D$4","v":0.87397199999999997},{"$f":"$L8*E$4","v":0.65924100000000008},{"$f":"$M8*F$4","v":0.51719999999999999},{"$f":"$N8*G$4","v":1.0812619999999999},{"$f":"$O8*H$4","v":1.17},{"$f":"A8","v":"Mid (default)"},0.99,0.99,0.99,12,1.69,150]
["Front",null,1.29,{"$f":"$K9*D$4","v":1.1388120000000002},{"$f":"$L9*E$4","v":0.85901100000000008},{"$f":"$M9*F$4","v":0},{"$f":"$N9*G$4","v":1.401162},null,{"$f":"A9","v":"Front"},1.29,1.29,1.29,null,2.19]
[]
["Playlist Tier (Categoria di prezzo per MULTI-TRACK ALBUM)"]
["Digital 45 *","da 2 a 4 Tracks",1.49,{"$f":"$K12*D$4","v":1.756772},{"$f":"$L12*E$4","v":1.3251410000000001},{"$f":"$M12*F$4","v":0.86199999999999999},{"$f":"$N12*G$4","v":2.1689220000000002},{"$f":"$O12*H$4","v":2.34},{"$f":"A12","v":"Digital 45 *"},1.49,1.99,1.99,20,3.39,300]
["Mini-EP *","da 3 a 7 Tracks",1.99,2.6395720000000003,1.9910410000000003,1.2929999999999999,3.1926020000000004,3.51,"Mini-EP *",1.99,2.99,2.99,30,4.99,450]
["EP *","da 4 a 10 Tracks",2.99,3.5223720000000003,2.6569410000000002,1.724,4.4722020000000002,4.68,"EP *",2.99,3.99,3.99,40,6.99,600]
["MiniAlbum *","da 5 a 10 Tracks",3.99,4.4051720000000003,3.3228410000000004,2.1549999999999998,5.7518020000000005,5.85,"MiniAlbum *",3.99,4.99,4.99,50,8.99,750]
["MiniAlbum 2 *","da 5 a 10 Tracks",3.99,4.4051720000000003,3.3228410000000004,2.1549999999999998,5.7518020000000005,5.85,{"$f":"A16","v":"MiniAlbum 2 *"},4.49,4.99,4.99,50,8.99,750]
["Budget (One)",null,4.99,5.2879720000000008,3.9887410000000005,2.5859999999999999,6.7115020000000003,7.02,"Budget (One)",4.99,5.99,5.99,60,10.49,900]
["Budget Two",null,5.99,6.1707720000000004,4.6546410000000007,3.2324999999999999,7.671202000000001,8.19,"Budget Two",5.99,6.99,6.99,75,11.99,1050]
["Back",null,6.99,7.0535720000000008,5.3205410000000004,3.879,8.9508020000000013,9.36,"Back",6.99,7.99,7.99,90,13.99,1200]
["Mid",null,7.99,7.9363720000000004,5.986441000000001,4.5255000000000001,9.910502000000001,10.53,"Mid",7.99,8.99,8.99,105,15.49,1350]
["Mid/Front (default)",null,8.99,8.7397200000000002,6.6523410000000007,5.1719999999999997,10.870201999999999,11.7,"Mid/Front (default)",8.99,9.9,9.99,120,16.989999999999998,1500]
["Front (One)",null,9.99,9.7019720000000014,7.3182410000000004,5.6029999999999998,12.149801999999999,12.87,"Front (One)",9.99,10.99,10.99,130,18.989999999999998,1650]
["Front Plus",null,11.99,10.584772000000001,7.984141000000001,6.4649999999999999,12.789602,14.04,"Front Plus",11.99,11.99,11.99,150,19.989999999999998,1800]
[]
["Per Playlist con 2, 3 o più CD, il prezzo sarà moltiplicato per il numero di CD."]
[]
["* Digital 45, Mini-EP, EP, MiniAlbum"]
["Con l'obbiettivo di dare al multi-track album un prezzo che dia uno sconto al pubblico rispetto a comprare la somma delle singole tracce, è fondamentale tenere presente che: "]
["Scegliendo i Tier con l'asterisco (con il numero di brani minimi segnalati) si da la convenienza al pubblico solo in EUROPA"]
["Per dare una convenienza al pubblico anche negli altri paesi, bisogna scegliere questi tier quando hanno una traccia in più di quella riportata nella tabella: Digital 45 (3), Mini-EP (4), EP (5), MiniAlbum (6)."]

{"sheet":"Parametri","index":4,"n_rows":301,"n_cols":3,"rows_kept":301,"cut":false,"hidden":true,"merged":[]}
["Afghanistan","Performer","Alternative / Alternative"]
["Aland Islands","Soloist","Alternative / Alternative Dance"]
["Albania","Orchestra","Alternative / Brit-Pop"]
["Algeria","Actor","Alternative / Experimental Rock"]
["American Samoa","Voce narrante","Alternative / Garage Rock"]
["Andorra","Arranger","Alternative / Goth & Industrial"]
["Angola","Librettist","Alternative / Grunge"]
["Anguilla","Conductor","Alternative / Hardcore & Punk"]
["Antarctica","Choir Master","Alternative / Indie & Lo-Fi"]
["Antigua and Barbuda","Producer","Alternative / New Wave & Post-Punk"]
["Argentina","Sound Engineer","Alternative / Noise"]
["Armenia","Mastering Engineer","Alternative / Singer-Songwriters"]
["Aruba","Remixer","Alternative / Ska"]
["Australia","Lead Vocals","Alternative / Space Rock"]
["Austria","Background Vocals","Audiobooks / Audiobooks"]
["Azerbaijan","Contralto Vocals","Blues / Blues"]
["Bahamas","Baritono Vocals","Blues / Acoustic Blues"]
["Bahrain","Tenore Vocals","Blues / Chicago Blues"]
["Bangladesh","Countertenor Vocals","Blues / Classical Female Vocal Blues"]
["Barbados","Soprano Vocals","Blues / Contemporary Blues"]
["Belarus","Mezzo Soprano Vocals","Blues / Delta Blues"]
["Belgium","Bass Vocals","Blues / Electric Blues Guitar"]
["Belize","Guest Vocals","Blues / Modern Blues"]
["Benin","Chorus","Blues / New Orleans Blues"]
["Bermuda","Guitar","Blues / Regional Blues"]
["Bhutan","Electric Guitar","Blues / Texas Blues"]
["Bolivia","Acoustic Guitar","Blues / Traditional Blues"]
["Bonaire, Sint Eustatius and Saba","12-String Guitar","Children's music / Children's Music"]
["Bosnia and Herzegovina","12-String Acoustic Guitar","Children's music / Barney"]
["Botswana","Classical Guitar","Children's music / Cartoon Music"]
["Bouvet Island","Lead Guitar","Children's music / Disney"]
["Brazil","Rhythm Guitar","Children's music / Educational"]
["British Indian Ocean Territory","Steel Guitar","Children's music / Lullabies"]
["Brunei Darussalam","Pedal Steel Guitar","Children's music / Music For Little People"]
["Bulgaria","Electric Bass Guitar","Children's music / Pokemon"]
["Burkina Faso","Acoustic Bass Guitar","Children's music / Sesame Street"]
["Burundi","Double Bass","Christian & Gospel / Christian"]
["Cambodia","Upright Bass","Christian & Gospel / Gospel"]
["Cameroon","Fretless Electric Bass Guitar","Christian & Gospel / Christian Rap"]
["Canada","Banjo","Christian & Gospel / Christian Rock"]
["Cape Verde","Mandolin","Christian & Gospel / Country Gospel"]
["Cayman Islands","Keyboards","Christian & Gospel / Praise & Worship"]
["Central African Republic","Piano","Classical / Classical"]
["Chad","Forte Piano","Classical / Baroque (C. 1600-1750)"]
["Chile","Prepared Piano","Classical / Chamber Music"]
["China","Organ","Classical / Classical (C. 1770-1830)"]
["Christmas Island","Fender Rhodes","Classical / Early Music"]
["Cocos Islands","Hammond Organ","Classical / Modern, 20th, & 21st Century"]
["Colombia","Harpsichord","Classical / Renaissance (C. 1450-1600)"]
["Comoros","Harmonica","Classical / Romantic (C. 1820-1910)"]
["Congo","Chromatic Harmonica","Classical / Sacred & Religious"]
["Congo, The Democratic Republic Of","Accordion","Classical / Symphonies"]
["Cook Islands","Concertina","Country / Country"]
["Costa Rica","Saxophone","Country / Alt-Country & Americana"]
["Cote D Ivoire","Soprano Saxophone","Country / Bluegrass"]
["Croatia","Alto Saxophone","Country / Country Gospel"]
["Cuba","Tenor Saxophone","Country / Cowboy"]
["Curacao","Baritone Saxophone","Country / Honky-Tonk"]
["Cyprus","Sopranino Saxophone","Country / Nashville"]
["Czech Republic","Flute","Country / Outlaw & Progressive Country"]
["Denmark","Piccolo Flute","Country / Square Dance"]
["Djibouti","Recorder","Country / Traditional Country"]
["Dominica","Clarinet","Country / Western Swing"]
["Dominican Republic","Bass Clarinet","Dance & Electronic / Dance"]
["Ecuador","Bassoon","Dance & Electronic / Electronica"]
["Egypt","Oboe","Dance & Electronic / Ambient"]
["El Salvador","Trumpet","Dance & Electronic / Lounge"]
["Equatorial Guinea","Trombone","Dance & Electronic / Big Beat"]
["Eritrea","Corno franc.","Dance & Electronic / Dance Pop"]
["Estonia","Tuba","Dance & Electronic / Deep House"]
["Ethiopia","Bass Trombone","Dance & Electronic / Disco"]
["Falkland Islands","Violin","Dance & Electronic / Drum & Bass"]
["Faroe Islands","First Violin","Dance & Electronic / Freestyle"]
["Fiji","Second Violin","Dance & Electronic / House"]
["Finland","Viola","Dance & Electronic / Idm"]
["France","Viola Da Gamba","Dance & Electronic / Industrial Dance"]
["French Guiana","Harp","Dance & Electronic / Jungle"]
["French Polynesia","Cello","Dance & Electronic / Techno"]
["French Southern Territories","Drums","Dance & Electronic / Trance"]
["Gabon","Percussion","Dance & Electronic / Trip-Hop"]
["Gambia","Congas","Dance & Electronic / Turntablists"]
["Georgia","Steel Drums","Dance & Electronic / World Dance"]
["Germany",null,"Folk / Folk"]
["Ghana",null,"Folk / Contemporary Folk"]
["Gibraltar",null,"Folk / Traditional British & Celtic Folk"]
["Greece",null,"Folk / Traditional Folk"]
["Greenland",null,"Hard Rock & Metal / Hard Rock & Metal"]
["Grenada",null,"Hard Rock & Metal / Hard Rock"]
["Guadeloupe",null,"Hard Rock & Metal / Alternative Metal"]
["Guam",null,"Hard Rock & Metal / British Metal"]
["Guatemala",null,"Hard Rock & Metal / Death Metal"]
["Guernsey",null,"Hard Rock & Metal / Pop Metal"]
["Guinea",null,"Hard Rock & Metal / Thrash & Speed Metal"]
["Guinea-Bissau",null,"Jazz / Jazz"]
["Guyana",null,"Jazz / Acid Jazz"]
["Haiti",null,"Jazz / Avant Garde & Free Jazz"]
["Heard And Mcdonald Islands",null,"Jazz / Bebop"]
["Honduras",null,"Jazz / Big Band"]
["Hong Kong",null,"Jazz / Brazilian Jazz"]
["Hungary",null,"Jazz / Cool Jazz"]
["Iceland",null,"Jazz / Ethno-Jazz"]
["India",null,"Jazz / Fusion"]
["Indonesia",null,"Jazz / Jazz Jam Bands"]
["Iran",null,"Jazz / Latin Jazz"]
["Iraq",null,"Jazz / Manouche"]
["Ireland",null,"Jazz / Modern Postbebop"]
["Isle of Man",null,"Jazz / New Orleans Jazz"]
["Israel",null,"Jazz / Nu Jazz"]
["Italy",null,"Jazz / Smooth Jazz"]
["Jamaica",null,"Jazz / Soul-Jazz & Boogaloo"]
["Japan",null,"Jazz / Swing Jazz"]
["Jersey",null,"Jazz / Traditional Jazz & Ragtime"]
["Jordan",null,"Jazz / Vocal Jazz"]
["Kazakhstan",null,"Latin / Latin Music"]
["Kenya",null,"Latin / Bachata"]
["Kiribati",null,"Latin / Banda"]
["Korea (Nord)",null,"Latin / Big Band"]
["Korea (Sud)",null,"Latin / Bolero"]
["Kosovo",null,"Latin / Bossa Nova"]
["Kuwait",null,"Latin / Corridos"]
["Kyrgyzstan",null,"Latin / Cumbia"]
["Laos",null,"Latin / Duranguence"]
["Latvia",null,"Latin / Fado"]
["Lebanon",null,"Latin / Flamenco"]
["Lesotho",null,"Latin / Forrô "]
["Liberia",null,"Latin / Grupero"]
["Libya",null,"Latin / Latin Rap"]
["Liechtenstein",null,"Latin / Mambo"]
["Lithuania",null,"Latin / Mariachi"]
["Luxembourg",null,"Latin / Merengue"]
["Macao",null,"Latin / MPB "]
["Macedonia",null,"Latin / Norteno"]
["Madagascar",null,"Latin / Ranchera"]
["Malawi",null,"Latin / Rock En Espanol"]
["Malaysia",null,"Latin / Salsa"]
["Maldives",null,"Latin / Samba"]
["Mali",null,"Latin / Samba Reggae"]
["Malta",null,"Latin / Son"]
["Marshall Islands",null,"Latin / Sonidero"]
["Martinique",null,"Latin / Tango"]
["Mauritania",null,"Latin / Tejano"]
["Mauritius",null,"Miscellaneous / Cabaret"]
["Mayotte",null,"Miscellaneous / Comedy"]
["Mexico",null,"Miscellaneous / Exercise"]
["Micronesia",null,"Miscellaneous / Holiday"]
["Moldova",null,"Miscellaneous / Humour"]
["Monaco",null,"Miscellaneous / Karaoke"]
["Mongolia",null,"Miscellaneous / Marches"]
["Montenegro",null,"Miscellaneous / Poetry, Spoken Word & Interviews"]
["Montserrat",null,"Miscellaneous / Wedding Music"]
["Morocco",null,"New Age / New Age"]
["Mozambique",null,"New Age / Buddhist Music"]
["Myanmar",null,"New Age / Celtic New Age"]
["Namibia",null,"New Age / Environmental"]
["Nauru",null,"New Age / Healing"]
["Nepal",null,"New Age / Mantra & Sanscrit Hymns"]
["Netherlands",null,"New Age / Meditation"]
["New Caledonia",null,"New Age / Relaxation"]
["New Zealand",null,"New Age / Ritual Music"]
["Nicaragua",null,"New Age / Tao Music"]
["Niger",null,"New Age / Theater & Ballet Music"]
["Nigeria",null,"New Age / Tibetan Music"]
["Niue",null,"Opera & Vocal / Opera"]
["Norfolk Island",null,"Opera & Vocal / Vocal"]
["Northern Mariana Islands",null,"Opera & Vocal / Arias"]
["Norway",null,"Opera & Vocal / Operettas"]
["Oman",null,"Opera & Vocal / Oratorios"]
["Pakistan",null,"Opera & Vocal / Vocal Non-Opera"]
["Palau",null,"Pop / Pop"]
["Palestinian Territory",null,"Pop / Adult Alternative"]
["Panama",null,"Pop / Adult Contemporary"]
["Papua New Guinea",null,"Pop / Easy Listening"]
["Paraguay",null,"Pop / French Pop"]
["Peru",null,"Pop / German Pop"]
["Philippines",null,"Pop / Italian Pop"]
["Pitcairn",null,"Pop / Oldies"]
["Poland",null,"Pop / Pop Rock"]
["Portugal",null,"Pop / Singer-Songwriters"]
["Puerto Rico",null,"Pop / Soft Rock"]
["Qatar",null,"Pop / Teen Pop"]
["Réunion",null,"R&B / Soul / R&B"]
["Romania",null,"R&B / Soul / Soul"]
["Russian Federation",null,"R&B / Soul / Classic R&B"]
["Rwanda",null,"R&B / Soul / Contemporary R&B"]
["Saint Barthélemy",null,"R&B / Soul / Funk"]
["Saint Helena",null,"R&B / Soul / Motown"]
["Saint Kitts And Nevis",null,"R&B / Soul / Neo-Soul"]
["Saint Lucia",null,"R&B / Soul / New Jack"]
["Saint Martin (French Part)",null,"R&B / Soul / Quiet Storm"]
["Saint Pierre And Miquelon",null,"Rap & Hip-Hop / Rap & Hip-Hop"]
["Saint Vincent And The Grenadines",null,"Rap & Hip-Hop / Bass"]
["Samoa",null,"Rap & Hip-Hop / East Coast"]
["San Marino",null,"Rap & Hip-Hop / Experimental Rap"]
["Sao Tome And Principe",null,"Rap & Hip-Hop / Gangsta & Hardcore"]
["Saudi Arabia",null,"Rap & Hip-Hop / International Rap"]
["Senegal",null,"Rap & Hip-Hop / International Rap"]
["Serbia",null,"Rap & Hip-Hop / Old School"]
["Seychelles",null,"Rap & Hip-Hop / Pop Rap"]
["Sierra Leone",null,"Rap & Hip-Hop / Southern Rap"]
["Singapore",null,"Rap & Hip-Hop / West Coast"]
["Sint Maarten (Dutch Part)",null,"Reggae / Reggae"]
["Slovakia",null,"Reggae / Dancehall"]
["Slovenia",null,"Reggae / Dub"]
["Solomon Islands",null,"Reggae / Raggamuffin"]
["Somalia",null,"Reggae / Reggaeton"]
["South Africa",null,"Reggae / Rocksteady & Ska"]
["South Georgia and The South Sandwich Islands",null,"Reggae / Roots Reggae"]
["South Sudan",null,"Rock / Rock"]
["Spain",null,"Rock / Singer-Songwriter"]
["Sri Lanka",null,"Rock / Album-Oriented Rock (Aor)"]
["Sudan",null,"Rock / Arena Rock"]
["Suriname",null,"Rock / Blues Rock"]
["Svalbard and Jan Mayen",null,"Rock / British Invasion"]
["Swaziland",null,"Rock / Classic Rock"]
["Sweden",null,"Rock / Country Rock"]
["Switzerland",null,"Rock / Folk Rock"]
["Syria",null,"Rock / Funk Rock"]
["Taiwan",null,"Rock / Glam"]
["Tajikistan",null,"Rock / Hard Rock"]
["Tanzania",null,"Rock / Jam Bands"]
["Thailand",null,"Rock / Oldies & Retro"]
["Timor-Leste",null,"Rock / Power Pop"]
["Togo",null,"Rock / Progressive"]
["Tokelau",null,"Rock / Psychedelic Rock"]
["Tonga",null,"Rock / Rap Rock"]
["Trinidad and Tobago",null,"Rock / Rockabilly"]
["Tunisia",null,"Rock / Rock'n'Roll"]
["Turkey",null,"Rock / Roots Rock"]
["Turkmenistan",null,"Rock / Southern Rock"]
["Turks and Caicos Islands",null,"Rock / Supergroups"]
["Tuvalu",null,"Soundtrack / Soundtracks"]
["Uganda",null,"Soundtrack / Animal Sounds"]
["Ukraine",null,"Soundtrack / Anime"]
["United Arab Emirates",null,"Soundtrack / Broadway & Vocalists"]
["United Kingdom",null,"Soundtrack / Movie Scores"]
["United States",null,"Soundtrack / Movie Soundtracks"]
["Uruguay",null,"Soundtrack / Musicals"]
["Uzbekistan",null,"Soundtrack / Sound Effects"]
["Vanuatu",null,"Soundtrack / Television Soundtracks"]
["Vatican City State",null,"Soundtrack / Video Game Soundtracks"]
["Venezuela",null,"World / World"]
["Viet Nam",null,"World / Africa"]
["Virgin Islands (UK)",null,"World / Central & South Africa"]
["Virgin Islands (USA)",null,"World / East Africa"]
["Wallis and Futuna",null,"World / North Africa"]
["Western Sahara",null,"World / West Africa"]
["Yemen",null,"World / Australia & New Zealand"]
["Zambia",null,"World / Europe"]
["Zimbabwe",null,"World / Central Europe"]
[null,null,"World / East Europe"]
[null,null,"World / Mediterranean Europe "]
[null,null,"World / Italy"]
[null,null,"World / Greece"]
[null,null,"World / Spain & Portugal"]
[null,null,"World / France"]
[null,null,"World / Occitany"]
[null,null,"World / Scandinavia"]
[null,null,"World / Asia"]
[null,null,"World / Far East Asia"]
[null,null,"World / South East Asia"]
[null,null,"World / Central Asia & Siberia"]
[null,null,"World / China"]
[null,null,"World / India & Pakistan"]
[null,null,"World / Middle East"]
[null,null,"World / Iran Iraq & Gulf Countries"]
[null,null,"World / Turkey & Caucasus"]
[null,null,"World / North America"]
[null,null,"World / South & Central America"]
[null,null,"World / Caribbean & Cuba"]
[null,null,"World / Mexico"]
[null,null,"World / Brasil"]
[null,null,"World / Argentina"]
[null,null,"World / Pacific Islands"]
[null,null,"World / African Percussion"]
[null,null,"World / Afrobeat & Afro-Jazz"]
[null,null,"World / Balkan Brass Band"]
[null,null,"World / Bollywood & Filmi Music"]
[null,null,"World / Cajun & Zydeco"]
[null,null,"World / Carnatic Music (South India)"]
[null,null,"World / Celtic"]
[null,null,"World / Classical & Court Music of China"]
[null,null,"World / Classical & Court Music of Corea"]
[null,null,"World / Classical & Court Music of Thailand"]
[null,null,"World / Classical & Court Music of Vietnam"]
[null,null,"World / Gamelan"]
[null,null,"World / Gnawa"]
[null,null,"World / Gypsy"]
[null,null,"World / Hindustani Music (North Music)"]
[null,null,"World / Islamic Sufi Music"]
[null,null,"World / Jewish, Sefardits & Klezmer Music"]
[null,null,"World / Native American"]
[null,null,"World / Polka"]
[null,null,"World / Fingerpicking"]
[null,null,"World / Qawwali"]
[null,null,"World / Rai"]
[null,null,"World / Reggaeton"]
[null,null,"World / Schlager"]
[null,null,"World / Soca & Calypso"]
[null,null,"World / Soukous & Congolese Rumba"]
[null,null,"World / Tarantella & Pizzica"]
[null,null,"World / Zouk"]

{"sheet":"Liste ","index":5,"n_rows":146,"n_cols":11,"rows_kept":146,"cut":false,"hidden":true,"merged":[[2,0,2,1]]}
["A","B","C","D","E","F","G","H","I","J",1]
[null,null,"new senza Macro","old con Macro","PLAYLIST",null,"TRACK",null,null,null,2]
["a disposizione MA NON ELIMINARE LE COLONNE",null,"Terrritori","Terrritori","Tier","Y / N","Tier","Language","Track Number","Disc Number",3]
[null,null,null,"funziona con Macro elusa 2019",null,null,null,null,null,null,4]
[null,null,"World","World","Digital 45","Y","Back","Instrumental",1,1,5]
[null,null,"Scrivi le nazioni","Europe","Mini-EP","N","Mid","Italian",2,2,6]
[null,null,null,"Italy","EP",null,"Front","English",3,3,7]
[null,null,null,"World except Europe","Mini Album",null,null,"Spanish",4,4,8]
[null,null,null,"Gestisci stati singolarmente","Mini Album 2",null,null,"French",5,5,9]
[null,null,null,null,"Budget (One)",null,null,"German",6,6,10]
[null,null,null,null,"Budget Two",null,null,"Portuguese",7,7,11]
[null,null,null,null,"Back",null,null,"Abkhazian",8,8,12]
[null,null,null,null,"Mid",null,null,"Afrikaans",9,9,13]
[null,null,null,null,"Mid/Front",null,null,"Albanian",10,10,14]
[null,null,null,null,"Front (One)",null,null,"Amharic",11,null,15]
[null,null,null,null,"Front Plus",null,null,"Arabic",12,null,16]
[null,null,null,null,null,null,null,"Armenian",13,null,17]
[null,null,null,null,null,null,null,"Assamese",14,null,18]
[null,null,null,null,null,null,null,"Aymara",15,null,19]
[null,null,null,null,null,null,null,"Azerbaijani",16,null,20]
[null,null,null,null,null,null,null,"Bashkir",17,null,21]
[null,null,null,null,null,null,null,"Basque",18,null,22]
[null,null,null,null,null,null,null,"Bengali",19,null,23]
[null,null,null,null,null,null,null,"Bhutani",20,null,24]
[null,null,null,null,null,null,null,"Bihari",21,null,25]
[null,null,null,null,null,null,null,"Bislama",22,null,26]
[null,null,null,null,null,null,null,"Bosnian",23,null,27]
[null,null,null,null,null,null,null,"Breton",24,null,28]
[null,null,null,null,null,null,null,"Bulgarian",25,null,29]
[null,null,null,null,null,null,null,"Burmese",26,null,30]
[null,null,null,null,null,null,null,"Byelorussian",27,null,31]
[null,null,null,null,null,null,null,"Cambodian",28,null,32]
[null,null,null,null,null,null,null,"Cantonese",29,null,33]
[null,null,null,null,null,null,null,"Catalan",30,null,34]
[null,null,null,null,null,null,null,"Chechen",31,null,35]
[null,null,null,null,null,null,null,"Chinese (Simplified)",32,null,36]
[null,null,null,null,null,null,null,"Chinese (Traditional)",33,null,37]
[null,null,null,null,null,null,null,"Corse",34,null,38]
[null,null,null,null,null,null,null,"Croatian",35,null,39]
[null,null,null,null,null,null,null,"Czech",36,null,40]
[null,null,null,null,null,null,null,"Danish",37,null,41]
[null,null,null,null,null,null,null,"Dutch",38,null,42]
[null,null,null,null,null,null,null,"Estonian",39,null,43]
[null,null,null,null,null,null,null,"Fiji",40,null,44]
[null,null,null,null,null,null,null,"Finnish",41,null,45]
[null,null,null,null,null,null,null,"Frisian",42,null,46]
[null,null,null,null,null,null,null,"Galician",43,null,47]
[null,null,null,null,null,null,null,"Georgian",44,null,48]
[null,null,null,null,null,null,null,"Greek",45,null,49]
[null,null,null,null,null,null,null,"Greenlandic",46,null,50]
[null,null,null,null,null,null,null,"Guarani",47,null,51]
[null,null,null,null,null,null,null,"Gujarati",48,null,52]
[null,null,null,null,null,null,null,"Haitian",49,null,53]
[null,null,null,null,null,null,null,"Hausa",50,null,54]
[null,null,null,null,null,null,null,"Hawaiian",51,null,55]
[null,null,null,null,null,null,null,"Hebrew",52,null,56]
[null,null,null,null,null,null,null,"Hindi",53,null,57]
[null,null,null,null,null,null,null,"Hungarian",54,null,58]
[null,null,null,null,null,null,null,"Icelandic",55,null,59]
[null,null,null,null,null,null,null,"Indonesian",56,null,60]
[null,null,null,null,null,null,null,"Inupiak",57,null,61]
[null,null,null,null,null,null,null,"Irish",58,null,62]
[null,null,null,null,null,null,null,"Japanese",59,null,63]
[null,null,null,null,null,null,null,"Javanese",60,null,64]
[null,null,null,null,null,null,null,"Kannada",61,null,65]
[null,null,null,null,null,null,null,"Kashmiri",62,null,66]
[null,null,null,null,null,null,null,"Kazakh",63,null,67]
[null,null,null,null,null,null,null,"Kinyarwanda",64,null,68]
[null,null,null,null,null,null,null,"Kirghiz",65,null,69]
[null,null,null,null,null,null,null,"Kirundi",66,null,70]
[null,null,null,null,null,null,null,"Korean",67,null,71]
[null,null,null,null,null,null,null,"Kurdish",68,null,72]
[null,null,null,null,null,null,null,"Lao",69,null,73]
[null,null,null,null,null,null,null,"Latin",70,null,74]
[null,null,null,null,null,null,null,"Latvian",71,null,75]
[null,null,null,null,null,null,null,"Lingala",72,null,76]
[null,null,null,null,null,null,null,"Lithuanian",73,null,77]
[null,null,null,null,null,null,null,"Luxembourgeois ",74,null,78]
[null,null,null,null,null,null,null,"Macedonian",75,null,79]
[null,null,null,null,null,null,null,"Malagasy",76,null,80]
[null,null,null,null,null,null,null,"Malay",77,null,81]
[null,null,null,null,null,null,null,"Malayalam",78,null,82]
[null,null,null,null,null,null,null,"Maltese",79,null,83]
[null,null,null,null,null,null,null,"Maori",80,null,84]
[null,null,null,null,null,null,null,"Marathi",81,null,85]
[null,null,null,null,null,null,null,"Moldavian",82,null,86]
[null,null,null,null,null,null,null,"Mongolian",83,null,87]
[null,null,null,null,null,null,null,"Nauru",84,null,88]
[null,null,null,null,null,null,null,"Nepali",85,null,89]
[null,null,null,null,null,null,null,"Norwegian",86,null,90]
[null,null,null,null,null,null,null,"Occitan",87,null,91]
[null,null,null,null,null,null,null,"Odia",88,null,92]
[null,null,null,null,null,null,null,"Oriya",89,null,93]
[null,null,null,null,null,null,null,"Pashto",90,null,94]
[null,null,null,null,null,null,null,"Persian",91,null,95]
[null,null,null,null,null,null,null,"Polish",92,null,96]
[null,null,null,null,null,null,null,"Punjabi",93,null,97]
[null,null,null,null,null,null,null,"Quechua",94,null,98]
[null,null,null,null,null,null,null,"Romanian",95,null,99]
[null,null,null,null,null,null,null,"Russian",96,null,100]
[null,null,null,null,null,null,null,"Samoan",97,null,101]
[null,null,null,null,null,null,null,"Sangro",98,null,102]
[null,null,null,null,null,null,null,"Sanskrit",99,null,103]
[null,null,null,null,null,null,null,"Scots Gaelic",null,null,104]
[null,null,null,null,null,null,null,"Serbian",null,null,105]
[null,null,null,null,null,null,null,"Serbo-Croatian",null,null,106]
[null,null,null,null,null,null,null,"Sesotho",null,null,107]
[null,null,null,null,null,null,null,"Setswana",null,null,108]
[null,null,null,null,null,null,null,"Shona",null,null,109]
[null,null,null,null,null,null,null,"Sindhi",null,null,110]
[null,null,null,null,null,null,null,"Singhalese",null,null,111]
[null,null,null,null,null,null,null,"Siswati",null,null,112]
[null,null,null,null,null,null,null,"Slovak",null,null,113]
[null,null,null,null,null,null,null,"Slovenian",null,null,114]
[null,null,null,null,null,null,null,"Somali",null,null,115]
[null,null,null,null,null,null,null,"Sundanese",null,null,116]
[null,null,null,null,null,null,null,"Swahili",null,null,117]
[null,null,null,null,null,null,null,"Swedish",null,null,118]
[null,null,null,null,null,null,null,"Tagalog",null,null,119]
[null,null,null,null,null,null,null,"Tahitian",null,null,120]
[null,null,null,null,null,null,null,"Taiwanese",null,null,121]
[null,null,null,null,null,null,null,"Tajik",null,null,122]
[null,null,null,null,null,null,null,"Tamil",null,null,123]
[null,null,null,null,null,null,null,"Tatar",null,null,124]
[null,null,null,null,null,null,null,"Telugu",null,null,125]
[null,null,null,null,null,null,null,"Thai",null,null,126]
[null,null,null,null,null,null,null,"Tibetan",null,null,127]
[null,null,null,null,null,null,null,"Tigrinya",null,null,128]
[null,null,null,null,null,null,null,"Tonga",null,null,129]
[null,null,null,null,null,null,null,"Tsonga",null,null,130]
[null,null,null,null,null,null,null,"Turkish",null,null,131]
[null,null,null,null,null,null,null,"Turkmen",null,null,132]
[null,null,null,null,null,null,null,"Ukrainian",null,null,133]
[null,null,null,null,null,null,null,"Urdu",null,null,134]
[null,null,null,null,null,null,null,"Uzbek",null,null,135]
[null,null,null,null,null,null,null,"Vietnamese",null,null,136]
[null,null,null,null,null,null,null,"Welsh",null,null,137]
[null,null,null,null,null,null,null,"Wolof",null,null,138]
[null,null,null,null,null,null,null,"Xhosa",null,null,139]
[null,null,null,null,null,null,null,"Yiddish",null,null,140]
[null,null,null,null,null,null,null,"Yoruba",null,null,141]
[null,null,null,null,null,null,null,"Zulu",null,null,142]
[null,null,null,null,null,null,null,null,null,null,143]
[null,null,null,null,null,null,null,null,null,null,144]
[null,null,null,null,null,null,null,null,null,null,145]
[null,null,null,null,null,null,null,null,null,null,146]